bitfinex-derivatives/quotes_ETHF0:USTF0_20250426
["timestamp","ask_amount","ask_price","bid_price","bid_amount"]
[1745635374948,3.2078,1813.8,1813.1,1.6607]
[1745635375144,5.308,1813.4,1813.1,1.6607]
[1745635375349,5.308,1813.4,1813.3,1.10238]
[1745635375847,5.308,1813.4,1813.3,4.73438]
[1745635376047,5.308,1813.4,1813.3,6.39508]
[1745635376946,3.68909,1813.4,1813.3,11.39508]
[1745635377147,3.2078,1814.1,1813.9,1.10198]
[1745635377545,3.2078,1814.1,1813.9,1.11648]
[1745635377848,1.6458,1814.0,1813.9,1.11648]
[1745635378148,6.9538,1814.0,1813.9,0.0145]
[1745635379144,13.05576,1814.0,1813.9,0.0145]
[1745635379645,1.1021,1813.8,1813.6,3.632]
[1745635379849,1.6458,1813.7,1813.6,3.632]
[1745635380349,15.1616,1813.7,1813.5,0.0145]
[1745635380546,1.1022,1813.6,1813.5,0.0145]
[1745635380751,1.1023,1813.5,1813.2,4.31022]
[1745635381047,2.84683,1813.4,1813.2,4.31022]
[1745635381251,1.10238,1813.3,1813.2,0.0145]
[1745635381548,1.7445,1813.3,1813.2,0.0145]
[1745635381751,2.84688,1813.3,1813.1,1.10249]
[1745635382247,8.15488,1813.3,1813.0,4.73352]
[1745635382447,8.15488,1813.3,1813.0,4.74802]
[1745635383054,8.15489,1813.3,1813.0,4.74805]
[1745635383550,1.10247,1813.2,1813.0,3.6455]
[1745635383848,1.6998,1813.1,1813.0,3.6455]
[1745635384240,7.0078,1813.1,1813.0,3.6455]
[1745635384455,7.0078,1813.1,1813.0,4.74807]
[1745635384743,7.0078,1813.1,1813.0,3.6455]
[1745635385148,7.0078,1813.1,1813.0,4.74807]
[1745635385543,5.308,1813.1,1813.0,7.95587]
[1745635386246,1.6998,1813.4,1813.2,1.10243]
[1745635386952,2.80213,1813.4,1813.2,1.10243]
[1745635387145,7.0078,1813.4,1813.2,1.10243]
[1745635387447,7.0078,1813.4,1813.3,1.10238]
[1745635387652,7.0078,1813.4,1813.2,1.1024]
[1745635387948,7.0078,1813.4,1813.3,1.6655]
[1745635388148,5.308,1813.4,1813.3,2.76788]
[1745635388341,5.308,1813.4,1813.3,6.52988]
[1745635388745,5.308,1813.4,1813.3,7.32228]
[1745635389149,1.6799,1813.6,1813.4,1.10226]
[1745635389346,1.6799,1813.6,1813.5,2.76776]
[1745635389745,4.30986,1813.9,1813.6,1.10218]
[1745635390049,1.6473,1813.8,1813.7,1.10214]
[1745635390257,8.5158,1813.9,1813.8,1.10208]
[1745635390442,5.308,1813.9,1813.8,1.10208]
[1745635391055,5.308,1813.9,1813.7,5.98062]
[1745635391250,1.10208,1813.8,1813.7,4.8785]
[1745635391549,1.10208,1813.8,1813.6,3.762]
[1745635391550,1.10214,1813.7,1813.6,3.762]
[1745635391757,5.308,1813.9,1813.6,3.762]
[1745635391951,5.308,1813.9,1813.8,1.10208]
[1745635392151,4.8551,1814.0,1813.8,1.10208]
[1745635392348,3.2078,1814.0,1813.8,1.10208]
[1745635392544,3.2078,1814.0,1813.9,2.77272]
[1745635392744,3.2078,1814.0,1813.9,1.6707]
[1745635393148,1.94408,1814.2,1813.9,2.77271]
[1745635393349,1.7342,1814.1,1813.9,2.77271]
[1745635393852,1.7342,1814.1,1813.9,1.6707]
[1745635394046,1.7342,1814.1,1813.9,2.7727]
[1745635394245,2.8361,1814.1,1813.9,2.7727]
[1745635394454,1.10196,1814.0,1813.7,4.30989]
[1745635394657,2.83616,1814.0,1813.8,1.10207]
[1745635395056,1.7342,1814.0,1813.8,1.10207]
[1745635395254,1.7342,1813.9,1813.8,1.10207]
[1745635396052,1.7342,1813.9,1813.7,2.74152]
[1745635396252,2.83622,1813.9,1813.7,2.74152]
[1745635396449,2.83622,1813.9,1813.7,1.6394]
[1745635396650,1.582,1813.8,1813.7,2.74154]
[1745635397250,1.10203,1813.9,1813.7,1.6394]
[1745635397449,2.68391,1814.1,1813.9,1.102]
[1745635398153,2.6839,1814.1,1813.9,1.10202]
[1745635398655,2.6839,1814.1,1813.8,1.5887]
[1745635398656,1.10196,1814.0,1813.8,2.69074]
[1745635398853,1.582,1814.0,1813.8,2.69074]
[1745635399053,1.582,1814.0,1813.7,1.10209]
[1745635399356,1.582,1814.0,1813.6,0.8071]
[1745635399557,3.2078,1813.9,1813.5,4.86322]
[1745635399752,1.10217,1813.7,1813.5,4.86322]
[1745635399950,1.6726,1813.6,1813.5,3.761]
[1745635400660,1.6726,1813.6,1813.5,4.86322]
[1745635400859,3.2078,1813.9,1813.8,1.10208]
[1745635401150,0.8422,1814.2,1813.7,3.2078]
[1745635401358,1.10204,1813.9,1813.7,1.10213]
[1745635401550,1.6726,1813.8,1813.7,1.10213]
[1745635401747,0.8422,1814.2,1813.9,1.10199]
[1745635401952,3.2078,1814.5,1814.4,1.10167]
[1745635402156,3.2078,1814.5,1814.2,3.761]
[1745635402353,3.2078,1814.5,1814.3,0.7909]
[1745635402656,1.6472,1814.8,1814.3,5.6286]
[1745635402955,2.74858,1815.0,1814.7,1.10151]
[1745635403153,1.6472,1815.0,1814.8,1.6299]
[1745635403348,1.6472,1815.0,1814.6,3.761]
[1745635403649,1.10138,1815.0,1814.6,5.3909]
[1745635403855,5.6482,1815.1,1814.7,2.73139]
[1745635404157,1.6472,1815.0,1814.7,1.6299]
[1745635404356,1.10143,1814.9,1814.7,1.6299]
[1745635404553,1.10153,1814.7,1814.6,3.761]
[1745635405257,2.79053,1814.7,1814.6,3.761]
[1745635405559,5.99833,1814.7,1814.6,3.761]
[1745635405757,2.79053,1814.7,1814.6,3.761]
[1745635406353,2.79053,1814.7,1814.2,0.8044]
[1745635406354,1.10178,1814.3,1814.2,0.8044]
[1745635406657,4.30958,1814.3,1814.2,2.4809]
[1745635406852,1.1016,1814.6,1814.2,2.4809]
[1745635407053,4.8968,1814.7,1814.5,1.10163]
[1745635407054,3.2078,1814.7,1814.5,1.10163]
[1745635407260,3.2078,1814.7,1814.2,0.8044]
[1745635407261,3.2078,1814.7,1814.6,2.77809]
[1745635407553,2.79044,1814.9,1814.6,2.77809]
[1745635407759,2.79044,1814.9,1814.7,2.77802]
[1745635408060,3.2078,1815.0,1814.8,2.77791]
[1745635408260,4.30918,1815.0,1814.9,1.6365]
[1745635408557,1.10147,1814.8,1814.7,5.308]
[1745635408749,2.77355,1814.9,1814.7,5.308]
[1745635408953,2.77355,1814.9,1814.7,8.04602]
[1745635409150,2.77355,1814.9,1814.8,1.6365]
[1745635409757,2.77355,1814.9,1814.7,6.40953]
[1745635409758,1.10147,1814.8,1814.7,5.308]
[1745635409958,2.77357,1814.8,1814.7,5.308]
[1745635410456,3.2078,1815.0,1814.7,6.40951]
[1745635410457,1.10143,1814.9,1814.7,6.40951]
[1745635410659,1.10143,1814.9,1814.8,1.6365]
[1745635410958,2.77353,1814.9,1814.8,1.6365]
[1745635411359,1.10148,1814.8,1814.6,1.10156]
[1745635411555,4.3092,1815.0,1814.7,1.10153]
[1745635412155,1.10141,1814.9,1814.8,1.6956]
[1745635412458,1.10147,1814.8,1814.7,5.308]
[1745635412655,5.96977,1814.8,1814.7,5.308]
[1745635412850,6.76357,1814.8,1814.7,5.308]
[1745635413359,1.10163,1814.6,1814.4,6.5573]
[1745635413558,1.10163,1814.6,1814.5,1.10165]
[1745635413754,2.76205,1814.7,1814.5,1.10165]
[1745635413959,0.7938,1814.8,1814.7,1.10153]
[1745635414161,2.7683947,1814.9,1814.7,1.1015]
[1745635414358,1.10147,1814.8,1814.7,5.308]
[1745635414555,5.89467,1814.8,1814.7,5.308]
[1745635415155,5.89467,1814.8,1814.6,1.10158]
[1745635415359,5.89467,1814.8,1814.5,1.5769]
[1745635415360,2.68687,1814.8,1814.5,1.5769]
[1745635415561,2.68687,1814.8,1814.6,1.10154]
[1745635415759,1.5854,1814.8,1814.7,1.5769]
[1745635415959,2.68687,1814.8,1814.7,1.5769]
[1745635416163,2.68687,1814.8,1814.7,6.8849]
[1745635416459,1.1079247,1814.9,1814.7,7.98643]
[1745635416662,0.0064647,1814.9,1814.8,2.67837]
[1745635417049,0.0064647,1814.9,1814.8,1.5769]
[1745635417252,0.0064647,1814.9,1814.8,6.8849]
[1745635417452,1.1078747,1814.9,1814.8,6.8849]
[1745635417862,1.1078747,1814.9,1814.8,5.308]
[1745635418364,1.10159,1814.7,1814.5,2.84375]
[1745635418556,1.10159,1814.7,1814.6,1.7421]
[1745635420460,1.10152,1814.8,1814.6,2.84367]
[1745635420665,1.10152,1814.8,1814.7,1.605]
[1745635420863,1.6544647,1814.9,1814.4,4.86167]
[1745635421164,2.77948,1814.7,1814.5,2.70665]
[1745635421363,2.77948,1814.7,1814.6,1.605]
[1745635421769,1.10151,1814.8,1814.6,2.70658]
[1745635421956,1.10151,1814.8,1814.7,1.605]
[1745635422156,1.10151,1814.8,1814.7,2.4199]
[1745635422357,2.7858147,1814.9,1814.7,2.4199]
[1745635422557,1.1079147,1814.9,1814.8,1.605]
[1745635422756,0.0064647,1814.9,1814.8,1.605]
[1745635423161,1.1078747,1814.9,1814.8,1.605]
[1745635423460,0.0064647,1814.9,1814.8,1.605]
[1745635423664,0.0064647,1814.9,1814.8,2.70647]
[1745635424166,0.0064647,1814.9,1814.8,6.913]
[1745635424362,0.0064647,1814.9,1814.8,8.01447]
[1745635424565,0.0064647,1814.9,1814.8,13.01447]
[1745635425664,3.2078,1815.6,1815.3,1.10114]
[1745635425665,4.30882,1815.6,1815.3,1.10114]
[1745635425871,3.2078,1815.6,1815.4,3.63777]
[1745635426064,0.8074,1816.0,1815.5,3.2078]
[1745635426271,0.8074,1816.0,1815.7,1.10092]
[1745635426272,1.90816,1816.0,1815.7,1.10092]
[1745635426467,3.58416,1816.0,1815.8,1.6963]
[1745635426770,2.4834,1816.0,1815.8,1.6963]
[1745635427070,2.4834,1816.0,1815.6,1.10094]
[1745635427071,3.2078,1815.9,1815.4,10.0244]
[1745635427273,3.2078,1815.9,1815.5,2.83545]
[1745635427274,2.80631,1815.8,1815.5,2.83545]
[1745635427570,1.10093,1815.7,1815.5,1.7344]
[1745635427963,2.80628,1815.8,1815.5,2.83543]
[1745635428266,1.10094,1815.7,1815.5,1.7344]
[1745635428468,1.10095,1815.7,1815.5,1.7344]
[1745635428874,2.80631,1815.8,1815.5,1.7344]
[1745635429164,2.80631,1815.8,1815.5,2.84984]
[1745635429374,2.80631,1815.8,1815.5,2.84983]
[1745635429673,5.1096,1816.1,1815.5,4.9566]
[1745635429869,3.2078,1816.1,1815.7,1.10088]
[1745635430172,1.1008,1815.9,1815.8,1.6846]
[1745635430368,1.10098,1815.7,1815.5,3.2222]
[1745635430562,3.2078,1815.9,1815.5,4.9068]
[1745635430563,2.74871,1815.8,1815.5,4.9068]
[1745635431468,1.10093,1815.7,1815.5,1.699]
[1745635431667,1.10099,1815.6,1815.5,1.699]
[1745635432169,1.10099,1815.6,1815.5,7.007]
[1745635432360,2.74879,1815.6,1815.5,7.007]
[1745635432567,4.30875,1815.7,1815.5,7.007]
[1745635432870,4.30874,1815.7,1815.5,7.007]
[1745635433369,1.10099,1815.6,1815.5,1.699]
[1745635433573,4.30877,1815.7,1815.5,1.699]
[1745635434370,1.10097,1815.7,1815.5,1.699]
[1745635434571,5.7398,1815.9,1815.5,1.699]
[1745635435069,5.7398,1815.9,1815.5,0.0144]
[1745635435070,1.10099,1815.6,1815.5,0.0144]
[1745635435268,2.75248,1815.6,1815.1,3.875]
[1745635435469,1.10119,1815.3,1815.0,4.30913]
[1745635435768,1.10123,1815.2,1815.1,1.6471]
[1745635436474,1.10129,1815.1,1815.0,8.5158]
[1745635437170,4.30909,1815.1,1815.0,5.308]
[1745635437374,1.10147,1814.8,1814.7,0.7912]
[1745635437676,1.10143,1814.9,1814.7,1.89269]
[1745635437877,1.7121,1814.8,1814.7,1.89269]
[1745635438378,2.81357,1814.8,1814.7,6.0992]
[1745635438679,1.7121,1814.8,1814.7,6.0992]
[1745635438974,1.7121,1814.8,1814.7,7.7482]
[1745635439181,2.81357,1814.8,1814.7,5.308]
[1745635440779,2.81357,1814.8,1814.7,0.2444]
[1745635441177,1.10168,1814.5,1814.3,5.10637]
[1745635441479,1.7121,1814.8,1814.4,1.10169]
[1745635441480,1.10163,1814.6,1814.4,1.10169]
[1745635441674,1.10163,1814.6,1814.3,4.0046]
[1745635441675,1.10169,1814.5,1814.3,5.10634]
[1745635441867,2.76219,1814.5,1814.3,6.72744]
[1745635442178,1.10171,1814.4,1814.3,8.5158]
[1745635442475,1.10162,1814.6,1814.4,1.1017]
[1745635442680,4.30924,1814.9,1814.7,1.10153]
[1745635442882,3.2078,1814.9,1814.8,1.10147]
[1745635443076,3.2078,1814.9,1814.7,6.40949]
[1745635443282,3.2078,1814.9,1814.8,1.6211]
[1745635443484,3.2078,1814.9,1814.8,2.72257]
[1745635443873,3.2078,1815.1,1815.0,1.10135]
[1745635444285,1.6605,1815.2,1815.0,1.10135]
[1745635444479,1.6605,1815.2,1815.1,1.6211]
[1745635444778,1.10141,1814.9,1814.8,8.5158]
[1745635444982,6.3355,1815.2,1814.9,1.10139]
[1745635445181,8.86477,1815.2,1814.9,1.7027]
[1745635445485,1.10129,1815.1,1814.9,2.5443]
[1745635445778,1.6244,1815.1,1814.9,2.5443]
[1745635446175,8.03371,1815.1,1814.9,2.5443]
[1745635446371,8.03371,1815.1,1814.9,3.64571]
[1745635446571,6.9324,1815.1,1814.9,3.64571]
[1745635446778,8.03371,1815.1,1814.9,2.5443]
[1745635446986,6.9324,1815.1,1814.9,3.64568]
[1745635447176,1.6244,1815.1,1815.0,1.10135]
[1745635447379,1.6244,1815.1,1815.0,2.80405]
[1745635447684,1.6244,1815.1,1815.0,1.7027]
[1745635449486,2.72569,1815.1,1814.9,0.8416]
[1745635450086,2.72569,1815.1,1814.9,2.4423]
[1745635450287,1.6244,1815.1,1814.9,3.5437]
[1745635450985,2.72573,1815.1,1814.9,2.4423]
[1745635451186,2.72573,1815.1,1814.9,3.5437]
[1745635452486,1.5838,1815.0,1814.9,3.5437]
[1745635455288,1.95378,1815.2,1814.9,3.5437]
[1745635455591,1.6402,1815.1,1815.0,1.6855]
[1745635455789,5.94929,1815.1,1815.0,1.6855]
[1745635455991,1.10135,1815.0,1814.8,1.95202]
[1745635456287,1.6402,1815.0,1814.9,1.10141]
[1745635456790,1.6402,1815.0,1814.9,2.78691]
[1745635457187,6.9482,1815.0,1814.9,2.78691]
[1745635458075,6.9482,1815.0,1814.9,1.6855]
[1745635458482,6.9482,1815.0,1814.9,2.78691]
[1745635458982,5.308,1815.0,1814.9,2.78691]
[1745635459186,5.308,1815.0,1814.9,3.58831]
[1745635459695,5.308,1815.0,1814.9,2.4869]
[1745635459892,6.9753,1815.0,1814.8,1.95203]
[1745635460094,1.6918,1814.9,1814.8,3.66633]
[1745635460387,1.6918,1814.9,1814.8,1.7143]
[1745635460592,6.6918,1814.9,1814.6,3.2078]
[1745635460790,3.2078,1814.7,1814.4,1.7143]
[1745635460994,3.2078,1814.7,1814.2,3.2078]
[1745635461298,1.10175,1814.4,1814.2,3.2078]
[1745635461484,1.6918,1814.3,1814.1,4.98089]
[1745635461886,4.8996,1814.3,1814.0,2.5595]
[1745635462094,10.2076,1814.3,1814.0,2.5595]
[1745635462294,1.10186,1814.2,1814.0,2.5595]
[1745635462493,1.6918,1814.1,1814.0,2.5595]
[1745635462795,1.6918,1814.1,1814.0,1.7143]
[1745635462994,8.5158,1814.3,1814.2,1.10184]
[1745635462995,5.308,1814.3,1814.2,1.10184]
[1745635463194,3.2078,1814.6,1814.3,1.10175]
[1745635463195,2.69731,1814.6,1814.3,1.10175]
[1745635463491,1.5957,1814.6,1814.4,1.10171]
[1745635463888,1.5957,1814.6,1814.0,13.83014]
[1745635463889,2.69729,1814.6,1814.1,3.879]
[1745635464196,3.55859,1814.6,1814.2,1.10179]
[1745635464387,6.76639,1814.6,1814.2,1.6965]
[1745635464594,6.76639,1814.6,1814.2,2.79828]
[1745635464996,1.10166,1814.5,1814.2,1.6965]
[1745635465195,1.5957,1814.4,1814.2,1.6965]
[1745635465392,1.10181,1814.3,1814.0,2.5417]
[1745635465695,6.40968,1814.5,1814.1,1.1019]
[1745635465891,1.5957,1814.4,1814.2,1.6965]
[1745635466093,1.5957,1814.4,1814.2,2.79833]
[1745635466297,6.9037,1814.4,1814.2,2.79833]
[1745635466599,8.00543,1814.4,1814.2,1.6965]
[1745635466805,6.9037,1814.4,1813.9,0.8014]
[1745635466994,1.10196,1814.0,1813.8,3.2078]
[1745635467194,1.6773,1813.9,1813.8,3.2078]
[1745635467392,1.6773,1813.9,1813.8,5.93768]
[1745635467594,1.6773,1813.9,1813.8,1.6278]
[1745635467895,2.77932,1813.9,1813.8,1.6278]
[1745635468099,6.9853,1813.9,1813.8,1.6278]
[1745635468297,8.08732,1813.9,1813.8,1.6278]
[1745635468497,6.9853,1813.9,1813.8,1.6278]
[1745635468692,8.08732,1813.9,1813.8,1.6278]
[1745635468891,8.08737,1813.9,1813.7,3.88]
[1745635469097,2.82288,1813.8,1813.5,3.62523]
[1745635469397,1.7208,1813.7,1813.6,2.8157]
[1745635470103,1.7208,1813.7,1813.4,4.0311]
[1745635470303,1.7208,1813.7,1813.4,5.7446]
[1745635470504,1.7208,1813.7,1813.4,3.2078]
[1745635470505,1.10226,1813.5,1813.4,3.2078]
[1745635471003,1.10226,1813.5,1813.2,4.0795]
[1745635471309,5.308,1813.5,1813.4,1.10232]
[1745635471701,5.308,1813.5,1813.4,4.31012]
[1745635472005,5.308,1813.5,1813.4,6.02362]
[1745635472205,1.7208,1813.7,1813.5,1.10225]
[1745635472407,1.7208,1813.7,1813.5,2.76605]
[1745635472710,1.7208,1813.7,1813.6,1.1022]
[1745635472911,0.8265,1813.8,1813.7,1.10214]
[1745635473099,9.0798,1813.9,1813.8,1.10208]
[1745635473100,3.2078,1813.9,1813.8,1.10208]
[1745635473305,8.19071,1814.1,1813.8,1.10208]
[1745635473507,1.7257,1814.0,1813.8,1.10208]
[1745635473909,1.7257,1814.0,1813.9,1.10202]
[1745635474110,7.0337,1814.0,1813.8,1.10203]
[1745635474506,7.0337,1814.0,1813.8,2.76583]
[1745635475012,7.0337,1814.0,1813.8,1.6638]
[1745635475211,1.6341,1813.9,1813.8,1.6638]
[1745635475713,1.6341,1813.9,1813.7,1.9575]
[1745635476313,6.9421,1813.9,1813.7,1.9575]
[1745635477210,6.9421,1813.9,1813.8,1.10208]
[1745635477710,6.9421,1813.9,1813.7,0.8554]
[1745635477909,6.9421,1813.9,1813.7,2.4407]
[1745635478117,6.9421,1813.9,1813.8,1.10208]
[1745635478307,6.9421,1813.9,1813.8,2.73218]
[1745635478712,6.9421,1813.9,1813.8,1.6301]
[1745635479014,1.10213,1813.8,1813.6,3.2078]
[1745635479312,8.87233,1813.8,1813.6,4.30999]
[1745635479704,1.6334,1813.7,1813.6,4.30999]
[1745635479903,1.6334,1813.7,1813.6,3.2078]
[1745635480100,8.04354,1813.7,1813.6,3.2078]
[1745635480320,1.1022,1813.6,1813.4,3.881]
[1745635480518,1.6334,1813.6,1813.4,4.9833]
[1745635480813,2.73563,1813.6,1813.4,4.9833]
[1745635481001,1.6334,1813.6,1813.5,1.10226]
[1745635481207,6.9414,1813.6,1813.5,1.10226]
[1745635481403,5.308,1813.6,1813.5,4.31006]
[1745635482213,4.30992,1813.8,1813.5,1.685]
[1745635482405,3.59318,1813.7,1813.5,1.685]
[1745635482601,1.6505,1813.6,1813.5,1.685]
[1745635482812,1.6505,1813.6,1813.5,2.78726]
[1745635483014,0.8405,1813.7,1813.6,1.1022]
[1745635483211,2.75257,1813.9,1813.7,1.10213]
[1745635483413,1.6505,1813.9,1813.7,1.10213]
[1745635483714,1.6505,1813.8,1813.7,1.10213]
[1745635484110,6.9585,1813.8,1813.6,2.78718]
[1745635484317,8.06059,1813.8,1813.6,1.685]
[1745635484514,2.78864,1813.7,1813.5,1.10221]
[1745635484815,1.6865,1813.7,1813.5,2.81191]
[1745635485116,8.09664,1813.7,1813.5,2.81191]
[1745635485316,8.09664,1813.7,1813.5,1.7097]
[1745635485513,1.6865,1813.6,1813.5,1.7097]
[1745635486219,8.0967,1813.6,1813.5,1.7097]
[1745635486717,6.9945,1813.6,1813.5,1.7097]
[1745635487116,8.0967,1813.6,1813.5,1.7097]
[1745635487317,6.9945,1813.6,1813.5,1.7097]
[1745635487515,8.0967,1813.6,1813.5,1.7097]
[1745635488319,6.9945,1813.6,1813.4,3.864]
[1745635488618,2.82646,1813.5,1813.4,5.556]
[1745635488820,1.7242,1813.5,1813.4,6.65832]
[1745635489216,7.0322,1813.5,1813.4,6.65832]
[1745635490515,5.308,1813.5,1813.4,2.79432]
[1745635491119,2.81307,1814.0,1813.7,1.10212]
[1745635491524,3.3182,1814.0,1813.8,1.6245]
[1745635492020,4.42016,1814.0,1813.8,1.6245]
[1745635492322,9.72816,1814.0,1813.8,1.6245]
[1745635493018,1.6071,1813.9,1813.8,1.6245]
[1745635494114,6.9151,1813.9,1813.8,1.6245]
[1745635494523,6.9151,1813.9,1813.8,2.72658]
[1745635494721,6.9151,1813.9,1813.8,1.6245]
[1745635495726,6.9151,1813.9,1813.7,1.959]
[1745635496025,5.308,1813.9,1813.8,1.10208]
[1745635496231,5.308,1813.9,1813.8,2.80428]
[1745635496524,5.308,1813.9,1813.8,1.7022]
[1745635496719,7.0163,1813.9,1813.8,1.7022]
[1745635497119,7.0163,1813.9,1813.8,2.80428]
[1745635497321,7.0163,1813.9,1813.8,1.7022]
[1745635498021,5.308,1813.9,1813.8,1.7022]
[1745635498223,5.308,1813.9,1813.8,2.80428]
[1745635499126,1.7083,1814.0,1813.9,1.10202]
[1745635499327,1.7083,1814.0,1813.9,2.77382]
[1745635499628,1.7083,1814.0,1813.9,1.6718]
[1745635500124,7.0163,1814.0,1813.9,1.6718]
[1745635500325,1.10204,1813.9,1813.7,2.4949]
[1745635500520,1.10214,1813.7,1813.6,0.8491]
[1745635500720,1.10209,1813.8,1813.6,0.8491]
[1745635500919,3.2078,1813.9,1813.6,0.8491]
[1745635501121,6.41002,1813.9,1813.7,2.4349]
[1745635501330,5.308,1813.9,1813.7,3.53704]
[1745635501522,5.308,1813.9,1813.7,1.638]
[1745635501720,3.6099,1813.8,1813.6,0.8491]
[1745635502030,1.6811,1813.7,1813.6,0.8491]
[1745635502219,2.78324,1813.7,1813.6,0.8491]
[1745635502415,1.6811,1813.7,1813.6,1.9513]
[1745635502628,1.6811,1813.7,1813.6,4.3805]
[1745635503224,6.9891,1813.7,1813.6,4.3805]
[1745635503921,5.308,1813.7,1813.6,4.3805]
[1745635504124,1.94761,1814.0,1813.7,1.10213]
[1745635504318,1.6775,1813.9,1813.8,1.10208]
[1745635504729,1.6775,1813.9,1813.7,2.7344]
[1745635504931,2.77954,1813.9,1813.7,1.6323]
[1745635505133,11.29534,1813.9,1813.7,1.6323]
[1745635505329,2.77958,1813.8,1813.7,1.6323]
[1745635505524,2.5079,1813.8,1813.6,1.646]
[1745635505719,5.308,1813.9,1813.8,1.10208]
[1745635506131,4.8373,1814.5,1814.3,1.10176]
[1745635506432,5.93895,1814.5,1814.2,1.10182]
[1745635506632,1.6295,1814.4,1814.2,1.10182]
[1745635507117,6.9375,1814.4,1814.1,1.5751]
[1745635507523,2.7313,1814.3,1814.1,1.5751]
[1745635507723,2.73134,1814.2,1814.1,1.5751]
[1745635508029,1.1019,1814.1,1814.0,3.2078]
[1745635508227,2.7314,1814.1,1813.9,1.10201]
[1745635508525,1.6295,1814.1,1813.8,2.67715]
[1745635508732,1.6977,1814.0,1813.8,2.67715]
[1745635509032,1.10202,1813.9,1813.7,6.6087]
[1745635509223,1.6977,1813.8,1813.7,8.2373]
[1745635509628,0.8482,1813.9,1813.8,1.10208]
[1745635509827,3.62636,1814.0,1813.8,2.73068]
[1745635510334,1.6977,1814.0,1813.9,1.10202]
[1745635510630,1.6977,1814.0,1813.9,2.73062]
[1745635511232,5.308,1814.0,1813.9,2.73062]
[1745635511630,7.0057,1814.0,1813.9,2.73062]
[1745635512028,8.10766,1814.0,1813.9,1.6286]
[1745635512229,2.79966,1814.0,1813.9,1.6286]
[1745635512533,2.79966,1814.0,1813.8,1.10204]
[1745635512733,1.6987,1813.9,1813.8,1.10204]
[1745635513127,1.6987,1813.9,1813.7,1.5761]
[1745635513128,1.10208,1813.8,1813.7,1.5761]
[1745635513334,1.10208,1813.8,1813.6,1.10218]
[1745635513633,1.6987,1813.7,1813.6,1.10218]
[1745635513834,1.6987,1813.7,1813.6,2.6783]
[1745635514224,2.80084,1813.7,1813.6,1.5761]
[1745635514426,1.6987,1813.7,1813.5,0.7933]
[1745635514624,1.6987,1813.6,1813.4,1.5761]
[1745635514828,1.6987,1813.6,1813.3,0.8077]
[1745635515030,1.6987,1813.6,1813.3,2.4471]
[1745635515225,7.0067,1813.6,1813.3,1.6394]
[1745635515437,1.1023,1813.5,1813.3,1.10238]
[1745635515637,2.8346,1813.5,1813.3,2.74178]
[1745635515937,5.308,1813.6,1813.5,1.10226]
[1745635516135,4.30998,1813.7,1813.3,1.6394]
[1745635516136,1.7323,1813.7,1813.4,2.4308]
[1745635516431,1.7323,1813.7,1813.5,2.4612]
[1745635516739,1.7323,1813.7,1813.6,2.7416]
[1745635516934,1.7323,1813.7,1813.6,1.6394]
[1745635517134,7.0403,1813.7,1813.6,1.6394]
[1745635517438,1.1023,1813.5,1813.3,1.10234]
[1745635517738,1.1023,1813.5,1813.3,2.74174]
[1745635518130,1.10232,1813.4,1813.3,1.6394]
[1745635518337,1.6251,1813.4,1813.3,1.10238]
[1745635518735,1.10244,1813.2,1813.0,4.31033]
[1745635519030,1.10244,1813.2,1813.1,1.1025]
[1745635519236,1.1025,1813.1,1813.0,4.9268]
[1745635519437,1.10247,1813.2,1813.0,6.02933]
[1745635519647,1.10243,1813.3,1813.1,1.10249]
[1745635519827,1.10243,1813.3,1813.1,2.82149]
[1745635520237,6.41043,1813.3,1813.1,2.82149]
[1745635520435,5.308,1813.3,1813.2,1.10244]
[1745635520637,5.308,1813.3,1813.2,2.82144]
[1745635521140,8.14113,1813.4,1813.2,2.82144]
[1745635521642,6.9751,1813.5,1813.4,1.10232]
[1745635522235,6.9751,1813.5,1813.3,1.6079]
[1745635522429,1.10232,1813.4,1813.2,0.8318]
[1745635522642,8.0774,1813.5,1813.3,1.10234]
[1745635522941,1.10232,1813.4,1813.3,1.6079]
[1745635523253,1.10238,1813.3,1813.2,1.10244]
[1745635523542,1.10238,1813.3,1813.1,4.31026]
[1745635524042,4.31015,1813.4,1813.2,1.10244]
[1745635524235,6.9751,1813.5,1813.4,1.10232]
[1745635524435,5.308,1813.5,1813.4,1.10232]
[1745635524937,5.308,1813.5,1813.4,3.68352]
[1745635525137,3.2078,1813.6,1813.4,3.68352]
[1745635525436,4.31003,1813.6,1813.4,2.5812]
[1745635525643,4.31003,1813.6,1813.4,3.68352]
[1745635525845,4.31003,1813.6,1813.5,1.7364]
[1745635526344,9.61803,1813.6,1813.5,1.7364]
[1745635527148,9.61803,1813.6,1813.1,8.14226]
[1745635527149,8.5158,1813.6,1813.1,8.14226]
[1745635527346,1.10237,1813.4,1813.2,2.82604]
[1745635527947,1.10238,1813.3,1813.2,1.7236]
[1745635528153,1.10241,1813.3,1813.2,1.10244]
[1745635528350,1.10241,1813.3,1813.2,2.82604]
[1745635528647,1.10238,1813.3,1813.2,1.7236]
[1745635529247,6.41038,1813.3,1813.2,1.7236]
[1745635529947,1.10244,1813.2,1813.1,4.6799]
[1745635530148,1.1025,1813.1,1813.0,2.3952]
[1745635530347,1.1025,1813.1,1813.0,0.8163]